Cogmind - Beta 15 @@@ ROGUE MODE // 2025.09.13 @ 15:46:57 Player: 1R0 Result: Destroyed by L-31 Rogue with Katana Performance ------------- Evolutions (1) 500 Regions Visited (3) 600 Robots Destroyed (17) 85 Value Destroyed (329) 329 Prototype IDs (1) 20 Alien Tech Used (0) 0 Bonus (0) 0 TOTAL SCORE: 1534 Bonus ------- None Cogmind --------- Core Integrity 0/400 Matter 46/300 Energy 100/100 System Corruption 12% Temperature Cool (0) Movement Core (100) Ox1 Location -9/Mines Parts ------- > --- POWER (1) -------- (None) > --- PROPULSION (4) --- (None) > --- UTILITY (2) ------ Small Storage Unit > --- WEAPON (2) ------- (None) > --- INVENTORY (8) ---- Improved Ion Engine Heavy Ion Engine Improved Deuterium Engine Flight Unit EM Pulse Gun Flak Gun Grenade Launcher Remote Datajack Peak State ------------ > --- POWER ------------ Heavy Ion Engine > --- PROPULSION ------- Aluminum Leg Aluminum Leg Aluminum Leg Aluminum Leg > --- UTILITY ---------- Small Storage Unit Targeting Computer > --- WEAPON ----------- Medium Laser Light Assault Rifle > --- INVENTORY -------- Light Ion Engine Improved Ion Engine Flight Unit EM Pulse Gun Improved Medium Laser Heavy Assault Rifle Grenade Launcher Maul [Rating: 12] Favorites ----------- Power Light Ion Engine Engine Light Ion Engine Propulsion Aluminum Leg Treads Light Treads Leg Aluminum Leg Utility Small Storage Unit Storage Small Storage Unit Processor Targeting Computer Weapon Light Assault Rifle Energy Gun Medium Laser Ballistic Gun Light Assault Rifle Launcher Grenade Launcher Impact Weapon Maul Slashing Weapon Mining Claw Build | -11 -10 -9 -9 ------- Run | Yrd Mat Mat Min Slots Evolved 2 | . . 2 . Power . | . . . . Propulsion 2 | . . 2 . Utility . | . . . . Weapon . | . . . . Parts Attached 21 | 6 . 15 . Power 4 | 1 . 3 . Engine 4 | 1 . 3 . Core . | . . . . Reactor . | . . . . Propulsion 6 | 2 . 4 . Treads 2 | 2 . . . Leg 4 | . . 4 . Wheel . | . . . . Hover . | . . . . Flight . | . . . . Utility 2 | 1 . 1 . Device . | . . . . Storage 1 | 1 . . . Processor 1 | . . 1 . Hackware . | . . . . Protection . | . . . . Artifact . | . . . . Weapon 9 | 2 . 7 . Energy Gun 1 | . . 1 . Energy Cannon . | . . . . Ballistic Gun 5 | 2 . 3 . Ballistic Cannon . | . . . . Launcher 1 | . . 1 . Special Weapon . | . . . . Impact Weapon 1 | . . 1 . Slashing Weapon 1 | . . 1 . Piercing Weapon . | . . . . Special Melee Weapon . | . . . . Unidentified Prototypes 1 | . . 1 . Parts Lost 15 | . 1 8 6 Power 3 | . 1 1 1 Propulsion 4 | . . 1 3 Utility 1 | . . 1 . Weapon 7 | . . 5 2 Highest Loss Streak 6 | . 1 4 6 To Critical Strikes . | . . . . Average Backups 5 | 2 4 5 7 Power 1 | . 1 1 3 Propulsion 1 | 1 2 . 1 Utility . | . . . . Weapon 2 | . 1 3 2 Tool/Special . | . . . . Unused Backups 9 | . . 2 7 Power 4 | . . 1 3 Propulsion 1 | . . . 1 Utility . | . . . . Weapon 3 | . . 1 2 Tool/Special 1 | . . . 1 Average Slot Usage (%) 82 | . 77 91 68 Engine 9 | . 6 10 11 Treads 9 | . 28 . . Leg 25 | . . 42 27 Storage 11 | . 14 11 11 Processor 3 | . . 7 . Ballistic Gun 19 | . 28 14 14 Launcher 1 | . . 1 5 Peak Build Rating 12 | 6 6 12 12 Average Rating 7 | 4 5 8 10 On Entrance 5 | . 6 5 10 Naked Turns . | . . . . Heaviest Build 17 | 13 13 17 17 Greatest Support 40 | 40 40 40 30 Greatest Overweight (x) 1 | 1 . . 1 Average Overweight (x) . | . . . . Largest Inventory Capacity 8 | 8 8 8 8 Average Capacity 7 | 6 8 8 8 Most Carried 8 | 5 8 8 8 Average Carried 5 | 3 4 5 7 Final Capacity 8 | 8 8 8 8 Final Carried 8 | 4 8 6 8 Class Distribution -------------------- 86% | Mutant 13% | Scavenger-Mutant Dominant Class ---------------- Mutant | -10/Materials Mutant | -9/Materials Mutant | -9/Mines Resources | -11 -10 -9 -9 ----------- Run | Yrd Mat Mat Min Matter Collected 326 | 224 29 40 33 Remotely . | . . . . Salvage Created 283 | . 170 113 . Parts 30 | . 13 17 . Haulers Intercepted . | . . . . Recyclers Shooed . | . . . . Parts Field Recycled . | . . . . Retrieved Matter . | . . . . Parts Self-Destructed . | . . . . Prevented . | . . . . Kills | -11 -10 -9 -9 ------- Run | Yrd Mat Mat Min Combat Hostiles Destroyed 16 | . 7 9 . Guns 11 | . 7 4 . AOE 5 | . . 5 . Classes Destroyed 4 | . 2 2 . Worker 1 | . . 1 . Swarmer 12 | . 5 7 . Grunt 2 | . 2 . . Sentry 2 | . . 2 . Best Kill Streak 5 | . 5 5 . Combat Bots Only 5 | . 5 4 . Max Kills in Single Turn 3 | . 2 3 . Gunslinging 1 | . 1 . . Exploded 3 | . . 3 . Melee . | . . . . Uniques/NPCs Destroyed . | . . . . Combat | -11 -10 -9 -9 -------- Run | Yrd Mat Mat Min Hostile Shots Fired 153 | . 44 91 18 Missed 39 | . 10 27 2 Hits 114 | . 34 64 16 Melee 16 | . . . 16 Projectile 98 | . 34 64 . Critical Strikes 3 | . . 2 1 Damage Taken 1975 | . 371 1048 556 Core 477 | . 53 197 227 Absorbed by Shields . | . . . . Core Remaining (%) 89 | 100 78 . . Volleys Fired 48 | . 14 28 6 Largest 2 | . 2 2 2 Hottest 70 | . 40 70 50 Shots Fired 83 | . 28 43 12 Gun 73 | . 28 34 11 Cannon . | . . . . Launcher 10 | . . 9 1 Special . | . . . . Kinetic 67 | . 28 28 11 Thermal 6 | . . 6 . Explosive 10 | . . 9 1 Electromagnetic . | . . . . Robot Hit Streak 15 | . 7 8 15 Robot Miss Streak 3 | . 2 3 . Penetration Max . | . . . . Secondary Targets 2 | . 2 . . Max Gunslinging Chain 1 | . 1 . . Shots Hit Robots 56 | . 20 26 10 Core Hits 29 | . 9 14 6 Critical Kills . | . . . . Critical Parts Destroyed . | . . . . Critical Strikes . | . . . . Melee Attacks 5 | . . 5 . Impact . | . . . . Slashing 5 | . . 5 . Piercing . | . . . . Sneak Attacks . | . . . . Combat Hostiles . | . . . . Follow-up Attacks . | . . . . Damage Inflicted 932 | . 220 541 171 Guns 542 | . 220 206 116 Cannons . | . . . . Explosions 374 | . . 335 39 Melee . | . . . . Ramming 16 | . . . 16 Kinetic 505 | . 220 169 116 Thermal 37 | . . 37 . Explosive 374 | . . 335 39 Electromagnetic . | . . . . Impact . | . . . . Slashing . | . . . . Piercing . | . . . . Highest Corruption 12 | . 2 12 12 Average Corruption 7 | . 2 12 12 Corruption Purged . | . . . . Corruption Blocked . | . . . . Effects 9 | . 2 1 6 Message Errors 2 | . 1 . 1 Matter Fused 2 | . . . 2 Heat Flow Errors 1 | . . . 1 Data Loss (minor) 2 | . 1 . 1 Data Loss (major) 2 | . . 1 1 Overload Shots . | . . . . Overflow Damage 27 | . . 27 . Projectiles . | . . . . Explosions 27 | . . 27 . Melee . | . . . . Knockbacks 1 | . . . 1 Impact 1 | . . . 1 Kinetic . | . . . . Secondary . | . . . . Self-Inflicted Damage 14 | . . 12 2 Shots 2 | . . 2 . Rammed 8 | . . . 8 Targets Rammed 11 | . . . 11 Kicked 3 | . . . 3 Crushed . | . . . . Highest Temperature 249 | . 1 68 249 Average Temperature 53 | . 1 25 116 Received Heat Transfer 138 | . 48 90 . Siege Activations . | . . . . Martial Activations . | . . . . Shielding Activations . | . . . . Robots Disrupted . | . . . . Combat Hostiles . | . . . . Robots Corrupted . | . . . . Combat Hostiles . | . . . . Parts Fried . | . . . . Impact Corruptions . | . . . . Robots Melted . | . . . . Combat Hostiles . | . . . . Parts Melted . | . . . . Heat Transferred 111 | . . 111 . Parts Sabotaged . | . . . . Parts Stolen . | . . . . Parts Stripped . | . . . . Power Chain Reactions . | . . . . Alert | -11 -10 -9 -9 ------- Run | Yrd Mat Mat Min Maximum Alert Level 1 | . . 1 . Low Security (%) 94 | 100 100 87 100 Level 1 5 | . . 12 . Level 2 . | . . . . Level 3 . | . . . . Level 4 . | . . . . Level 5 . | . . . . High Security . | . . . . Max Security . | . . . . Peak Influence 219 | . 101 219 54 Initial 54 | . . 25 54 Average 55 | . 38 92 21 Influence Increases 538 | . 161 341 36 Destroy 0b10 Robot/C 320 | . 140 180 . Destroy 0b10 Robot/NC 5 | . . 5 . Destroy Leader 60 | . 20 40 . Disable Machine 75 | . . 60 15 Destroy Structure 48 | . 1 41 6 Lose Combat Pursuer 30 | . . 15 15 Influence Decreases 538 | . 100 261 177 Entered New Map 123 | . . 36 87 Time Decay 295 | . 90 145 60 Lost Part 120 | . 10 80 30 Squads Dispatched 3 | . 1 1 1 Investigation 1 | . . . 1 Extermination . | . . . . Reinforcement 2 | . 1 1 . Assault . | . . . . Garrison . | . . . . Intercept . | . . . . Searches Triggered . | . . . . Construction Impeded . | . . . . Haulers Reinforced . | . . . . Active Scanning Responses . | . . . . Cargo Convoy Interrupts . | . . . . Stealth | -11 -10 -9 -9 --------- Run | Yrd Mat Mat Min Distress Signals 1 | . 1 . . Communications Jammed . | . . . . Distress Signals . | . . . . Times Spotted 22 | . 10 10 2 Peak Tracking Total 7 | . 7 4 2 Tactical Retreats 2 | . . 1 1 Traps | -11 -10 -9 -9 ------- Run | Yrd Mat Mat Min Traps Triggered . | . . . . Indirectly . | . . . . Trap Hack Attempts . | . . . . Triggered . | . . . . Disarmed . | . . . . Reprogrammed . | . . . . Reused . | . . . . Traps Extracted . | . . . . Installed . | . . . . Triggered . | . . . . Machines | -11 -10 -9 -9 ---------- Run | Yrd Mat Mat Min Machines Disabled 5 | . . 4 1 Max in Single Turn 4 | . . 4 1 Machines Repaired . | . . . . Machines Dismantled . | . . . . Machines Sabotaged . | . . . . Overloaded Fab Kills . | . . . . Hacking | -11 -10 -9 -9 --------- Run | Yrd Mat Mat Min Machines Accessed 3 | . 2 . 1 Terminals 2 | . 2 . . Fabricators . | . . . . Repair Stations . | . . . . Recycling Units . | . . . . Scanalyzers . | . . . . Garrison Access . | . . . . Total Hacks 3 | . 2 . 1 Successful 2 | . 1 . 1 Failed 1 | . 1 . . Catastrophic . | . . . . Database Lockouts . | . . . . Manual . | . . . . Terminals 2 | . 2 . . Fabricators . | . . . . Repair Stations . | . . . . Recycling Units . | . . . . Scanalyzers . | . . . . Garrison Access . | . . . . Terminal Hacks 2 | . 1 . 1 Record 1 | . 1 . . Open Door 1 | . . . 1 Fabricator Hacks . | . . . . Repair Station Hacks . | . . . . Recycling Unit Hacks . | . . . . Scanalyzer . | . . . . Garrison Access Hacks . | . . . . Unauthorized Hacks . | . . . . Terminals . | . . . . Fabricators . | . . . . Repair Stations . | . . . . Recycling Units . | . . . . Scanalyzers . | . . . . Garrison Access . | . . . . Data Cores Recovered . | . . . . Used . | . . . . Hacking Detections 1 | . 1 . . Full Trace Events . | . . . . Feedback Events . | . . . . Feedback Blocked . | . . . . Robot Schematics Acquired . | . . . . Robots Built . | . . . . Authchips . | . . . . Time . | . . . . Total Robot Build Rating . | . . . . Part Schematics Acquired . | . . . . Parts Built . | . . . . Authchips . | . . . . Time . | . . . . Total Part Build Rating . | . . . . Parts Repaired . | . . . . Time . | . . . . Parts Recycled . | . . . . Recycled Matter . | . . . . Retrieved Matter . | . . . . Retrieved Components . | . . . . Parts Scanalyzed . | . . . . Part Schematics Acquired . | . . . . Parts Damaged . | . . . . Bothacking | -11 -10 -9 -9 ------------ Run | Yrd Mat Mat Min Used RIF Installer . | . . . . Robots Hacked . | . . . . Non-combat . | . . . . Combat . | . . . . Robot Hacks Applied . | . . . . Relay Couplers Released . | . . . . Fabnet Peak Effective % . | . . . . Robots Rewired . | . . . . Allies Hacked . | . . . . Hacks Repelled . | . . . . Allies | -11 -10 -9 -9 -------- Run | Yrd Mat Mat Min Total Allies . | . . . . Largest Group . | . . . . Highest-Rated Group . | . . . . Highest-Rated Ally . | . . . . Total Orders . | . . . . Ally Attacks . | . . . . Total Damage . | . . . . Kills . | . . . . Allies Corrupted . | . . . . Allies Melted . | . . . . Intel | -11 -10 -9 -9 ------- Run | Yrd Mat Mat Min Active Infowar (turns) . | . . . . Robot Analysis Total . | . . . . Derelict Logs Recovered . | . . . . Drone Launches . | . . . . Drone Recoveries . | . . . . Exploration | -11 -10 -9 -9 ------------- Run | Yrd Mat Mat Min Turns Passed 905 | 76 264 398 167 Spaces Moved 507 | 41 135 234 97 Core 5 | 5 . . . Treads 171 | 36 135 . . Legs 331 | . . 234 97 Wheels . | . . . . Hover . | . . . . Flight . | . . . . Fastest Speed 50 | 50 160 120 120 Average Speed 133 | 150 160 120 120 Slowest Speed 190 | 160 160 120 190 Overloaded Moves . | . . . . Propulsion Burnouts . | . . . . Robots Hopped . | . . . . Potential Cave-ins . | . . . . Cave-ins Triggered 1 | . . 1 . Exploration Rate (%) 24 | 3 43 21 29 Regions Visited 3 Branch Regions 1 Pre-discovered Areas . | . . . . Known Exits Taken . | . . . . Unknown Exits Taken 3 | 1 1 1 . Scrap Searched . | . . . . Spaces Dug 2 | . . 2 . Terrain Destroyed 55 | . . 49 6 Melee 2 | . . 2 . Projectile . | . . . . AOE 53 | . . 47 6 Terrain Rammed . | . . . . Walls Destroyed . | . . . . Machines Disabled . | . . . . Actions | -11 -10 -9 -9 --------- Run | Yrd Mat Mat Min Total 637 | 56 158 302 121 Wait 9 | . 6 2 1 Move 504 | 40 134 233 97 Hop . | . . . . Pick Up 30 | 10 4 13 3 Fast Attach . | . . . . Attach 18 | 6 . 12 . Detach . | . . . . Swap 6 | . . 4 2 Drop 6 | . . 5 1 Fire 48 | . 14 28 6 Melee 5 | . . 5 . Ram 8 | . . . 8 Kick 3 | . . . 3 Crush . | . . . . Escape Stasis . | . . . . Rewire . | . . . . Trap . | . . . . Miscellaneous . | . . . . Route ------- -11/Scrapyard -10/Materials (discovered 2 exits: [*Mat] / [*Min]) -9/Materials -9/Mines History --------- Turn | Location | Event 11 | -11/Scrapyard | Discovered new exit (range 15) 77 | -11/Scrapyard | Entered Materials 252 | -10/Materials | Discovered new exit (range 12) 306 | -10/Materials | Build established: Mutant 320 | -10/Materials | Discovered new exit (range 10) 341 | -10/Materials | Entered another Materials area 341 | -9/Materials | Evolved 2 slots: Propulsion x2 702 | -9/Materials | Crushed by falling debris 702 | -9/Materials | System corruption reached 10% 716 | -9/Materials | Discovered new exit (range 16) 733 | -9/Materials | Lost 4 parts (1n1u2w) 739 | -9/Materials | Entered Mines 748 | -9/Mines | Met a Derelict shopkeep closing up shop 882 | -9/Mines | Core integrity fell below 50% 900 | -9/Mines | Core integrity fell below 20% 906 | -9/Mines | Destroyed by L-31 Rogue with Katana Last Messages --------------- 00841_ System corrupted: Heat flow error (+271). 00841_ K-01 Serf collects debris. 00858_ Seismic Survey Station disabled. 00864_ System corrupted: Component data lost. 00868_ Aluminum Leg destroyed. 00881_ Kicked L-31 Rogue. 00881_ L-31 Rogue knocked back. 00883_ Kicked L-31 Rogue. 00884_ Lgt. Assault Rifle destroyed. 00885_ Kicked L-31 Rogue. 00886_ Aluminum Leg destroyed. 00887_ Slammed into L-31 Rogue. 00889_ Hvy. Assault Rifle destroyed. 00890_ Slammed into L-31 Rogue. 00890_ Destabilizing: Core damaged (-16). 00891_ System corrupted: Matter fused (-10). 00892_ Slammed into L-31 Rogue. 00897_ Destabilizing: Core damaged (-20). 00900_ Slammed into L-31 Rogue. 00906_ Hvy. Ion Engine destroyed. Map ----- +----------------------------------------------------+ | ##########?????## #??????????????????????????? | | ???????????????## ##?????????????????????????? | | ???????????????# #######???????????????????? | | ???????????????# #???????????????????? | | ???????????????# ##### #???????????????????? | | ???????????????# ##????????????????????????? | | ???????????????## ##???????????????????????? | | ????????????###?## ##??????????????????????? | | ???????????## ??## #??????????????????????? | | ???????????# ??## #??????????????????????? | | ???????????# #??## ##??????????????????????? | | ????????????# #?## #???????????????????????? | | ???????####### ## #???????????????????????? | | ???????# t##??????????????????????? | | ???????# #??????????????????????? | | ???????# #### #??????????????????????? | | ?????????????# #??????????????????????? | | ????????????# ## ##?????????????????????? | | ???????????# ##### #?????????????????????? | | ???????? ##????# #?????????????????????? | | ??????? ##### #??????# ##????????????????????? | | ????????????###???????## ##???????????????????? | | ???????????????????????##g #???????????????????? | | ????????????????????????# #???????????????????? | | ?????????? ###??????????# ###???????????????????? | | ?????????? ??????#@l#?????????????????????? | | ?????????????# ### #?????????????????????? | | ?????????????# #?????????????????????? | | ?????????????# " ######?????????????????????? | | ?????????????# ?????????????????????????????? | | ?????????????### ????????????????????????????????? | | ?????????????????????????????????????????????????? | | ?????????????????????????????????????????????????? | | ?????????????????????????????????????????????????? | | ?????????????????????????????????????????????????? | | ?????????????????????????????????????????????????? | | ?????????????????????????????????????????????????? | | ?????????????????????????????????????????????????? | | ?????????????????????????????????????????????????? | | ?????????????????????????????????????????????????? | | ?????????????????????????????????????????????????? | | ?????????????????????????????????????????????????? | | ?????????????????????????????????????????????????? | | ?????????????????????????????????????????????????? | | ?????????????????????????????????????????????????? | | ?????????????????????????????????????????????????? | | ?????????????????????????????????????????????????? | | ?????????????????????????????????????????????????? | | ?????????????????????????????????????????????????? | | ?????????????????????????????????????????????????? | +----------------------------------------------------+ Best States ------------- Heat Dissipation 28 Energy Generation 14 Energy Capacity 280 Matter Stores 269 Matter Capacity 300 Sight Range 16 Terrain Scan Density 10 Evasion (%) 55 Targeting Accuracy 5 Recoil Reduction 2 Item Schematics ----------------- None Robot Schematics ------------------ None Fabricated ------------ Nothing Repaired ---------- Nothing Alien Tech Used ----------------- None Achievements -------------- None Challenges ------------ None Game ------ Seed AblativeFireShield Manual? 0 Play Time 00:10:00 Cumulative 5.2 hours Start 2025.09.13 @ 15:38:30 End 2025.09.13 @ 15:46:57 Sessions 1 Manual Loads 0 Difficulty Rogue Special Mode None Game No. 22 Rogue 19 Adventurer 3 Explorer 0 Win Type - Total 0 Types 0/0/0/0/0/0/0/0/0/0 Lore% 11 Gallery% 12 Achievement% 12 Wizard Run 0 Options --------- Layout 0 ASCII 0 Keyboard 0 Movement Mouse Keybinds 0 Fullscreen 2 Font 24/Smallcaps Map View 38x25 Zoom Use 99% Tactical HUD 1 Map Filters NONE Filters NONE Steam 1 RUN: ef0a4b49-1ed7-406b-b65a-7744847ce208